Workbook

Sheet Proforma
A1: Proforma for 26 units at the Flats at 120 2nd Street, Winder, GA
A3: Estimated Value | B3: 3000000
A4: Down Payment Percent | B4: 0.3
A5: Down Payment amount | B5: =B3*B4 -> 900000
A6: New First Mortgage | B6: =B3-B5 -> 2100000
A7: New first mortgage rate | B7: 0.055
A8: Mortgage Rate (Monthly- Calcuated) | B8: =B7/12 -> 0.004583333333
A9: Mortgage Term (Months) | B9: 300
A10: Management Fee | B10: 0.06
A11: Vacancy/Collection Loss | B11: 0.05
B13: Proforma Rent | C13: Annual Proforma
A14: Market Rent ($1100 for 1/1 and $1300 for 2/1) | B14: 29000 | C14: =B14*12 -> 348000
A15: Utility Income (Water) | B15: 835 | C15: 10020
A16: Late Fees, Convienece Fees, Other | B16: 600 | C16: 7200
A17: Pet Fees | B17: 280 | C17: 3360
A18: Less Vacancy | B18: =B14*0.05*-1 -> -1450 | C18: -17400
A19: Net Income | B19: =B14-B16+B18+B17 -> 27230 | C19: =B19*12 -> 326760
A21: Expenses
A22: Management Fee | B22: =B19*B10 -> 1633.8 | C22: =B22*12 -> 19605.6
A23: Utilities, Water, Garbage and vacant units | B23: 1200 | C23: 14400
A24: Pest Control | B24: 390 | C24: 4680
A25: Maintenance and Supplies | B25: 2000 | C25: 24000
A26: Lawn | B26: 150 | C26: 1800
A27: Property Taxes | B27: 1000 | C27: 12000
A28: Insurance | B28: 1280 | C28: 15360
A30: Total Expenses | B30: =SUM(B22:B29) -> 7653.8 | C30: 91845.6
A32: Net Operating Income | B32: =B19-B30 -> 19576.2 | C32: 234914.4
A34: 1st Mortgage Debt Service | B34: =PMT(B8,B9,B6)*-1 -> 12895.83734 | C34: =B34*12 -> 154750.0481
A35: Net Income After Debt Service | B35: =B32-B34 -> 6680.362662 | C35: 80164.35195
A36: GRM | C36: =B3/C19 -> 9.181050312
A37: CAP Rate | C37: =C32/B3*100 -> 7.83048
A38: Cash on Cash ROI year one | C38: =C35/B5 -> 0.08907150216
A39: DCR | C39: =B32/B34 -> 1.518024731

Sheet 1

Sheet Sheet3
